bitfinex/quotes_BTCUSD_20230905
["timestamp","ask_amount","ask_price","bid_price","bid_amount"]
[1693930798989,2.24717982,25814.0,25813.0,0.10085403]
[1693930799198,3.02195282,25814.0,25813.0,0.10085403]
[1693930799489,3.2398991,25814.0,25813.0,0.10085403]
[1693930801200,3.02195282,25814.0,25813.0,0.10085403]
[1693930801509,3.24671127,25814.0,25813.0,0.10085403]
[1693930805324,2.41838672,25814.0,25813.0,0.10085403]
[1693930805929,0.155037,25814.0,25813.0,0.10085403]
[1693930814133,1.14167656,25814.0,25813.0,0.10085403]
[1693930814854,1.91644956,25814.0,25813.0,0.10085403]
[1693930820112,2.86600127,25814.0,25813.0,0.10085403]
[1693930820308,3.25264654,25814.0,25813.0,0.10085403]
[1693930820831,3.25264654,25814.0,25813.0,0.08585403]
[1693930821285,3.25264654,25814.0,25813.0,0.08485403]
[1693930821690,3.25264654,25814.0,25813.0,0.07685403]
[1693930822144,3.25264654,25814.0,25813.0,0.08285403]
[1693930822568,3.35504654,25814.0,25813.0,0.08285403]
[1693930824325,3.41504654,25814.0,25813.0,0.08285403]
[1693930824544,3.55457095,25814.0,25813.0,0.013]
[1693930824758,3.60107909,25814.0,25813.0,0.013]
[1693930825168,3.60107909,25814.0,25813.0,0.007]
[1693930825388,0.04,25812.0,25805.0,0.38784068]
[1693930825600,0.1024,25809.0,25805.0,0.43244068]
[1693930825803,1.7926218,25808.0,25805.0,0.29291627]
[1693930826833,1.7926218,25808.0,25805.0,0.31791627]
[1693930827240,1.7926218,25808.0,25805.0,0.34291627]
[1693930828051,0.22373157,25807.0,25805.0,0.34291627]
[1693930828258,0.877413,25806.0,25805.0,0.05]
[1693930828437,1.87033178,25806.0,25805.0,0.05]
[1693930828672,2.64534478,25806.0,25805.0,0.05]
[1693930829291,2.64534478,25806.0,25805.0,0.025]
[1693930829471,2.64534478,25806.0,25805.0,0.05]
[1693930829702,2.64534478,25806.0,25805.0,0.025]
[1693930829703,2.80043978,25806.0,25805.0,0.025]
[1693930829884,2.80043978,25806.0,25805.0,0.05]
[1693930830089,3.023418,25806.0,25805.0,0.05]
[1693930830294,3.023418,25806.0,25805.0,0.025]
[1693930830533,3.023418,25806.0,25805.0,0.016]
[1693930830938,3.41006327,25806.0,25805.0,0.016]
[1693930831144,3.41006327,25806.0,25805.0,0.031]
[1693930832147,3.38534616,25806.0,25805.0,0.031]
[1693930832345,3.22708505,25806.0,25805.0,0.031]
[1693930832940,3.22708505,25806.0,25805.0,0.016]
[1693930833328,3.22708505,25806.0,25800.0,0.38941627]
[1693930833329,0.02,25805.0,25800.0,0.38941627]
[1693930833531,2.81430927,25804.0,25800.0,0.22801627]
[1693930833922,2.81430927,25804.0,25801.0,0.05884453]
[1693930835275,0.2100218,25803.0,25801.0,0.05884453]
[1693930835679,0.775133,25802.0,25801.0,0.05884453]
[1693930835886,0.775133,25802.0,25801.0,0.1518608]
[1693930835887,1.07757471,25802.0,25801.0,0.1518608]
[1693930836139,1.07757471,25802.0,25801.0,0.1768608]
[1693930836307,1.07757471,25802.0,25801.0,0.2008608]
[1693930836507,1.07757471,25802.0,25801.0,0.1758608]
[1693930837000,1.07757471,25802.0,25801.0,0.1518608]
[1693930837219,1.07757471,25802.0,25801.0,0.2008608]
[1693930837994,1.63075407,25802.0,25801.0,0.2008608]
[1693930838207,2.10344536,25802.0,25801.0,0.2008608]
[1693930839404,2.87857836,25802.0,25801.0,0.2008608]
[1693930840260,2.87857836,25802.0,25801.0,0.34038521]
[1693930840865,2.87857836,25802.0,25801.0,0.79871555]
[1693930841069,3.2581891,25802.0,25801.0,0.79871555]
[1693930841899,3.2581891,25802.0,25801.0,0.70569928]
[1693930842073,3.2581891,25802.0,25801.0,0.7984609]
[1693930842815,3.2581891,25802.0,25801.0,0.70570407]
[1693930844862,3.2581891,25802.0,25801.0,0.89173662]
[1693930845157,2.4830561,25802.0,25801.0,0.89173662]
[1693930845363,0.775133,25802.0,25801.0,0.79872035]
[1693930845558,1.550253,25803.0,25801.0,0.98416838]
[1693930845768,1.550253,25803.0,25802.0,0.59742356]
[1693930845972,1.550253,25803.0,25802.0,0.78287159]
[1693930846174,1.550253,25803.0,25802.0,0.59742356]
[1693930846377,1.550253,25803.0,25802.0,0.13908843]
[1693930846599,1.550253,25803.0,25802.0,0.69014881]
[1693930846843,1.550253,25803.0,25802.0,0.59742356]
[1693930846997,1.550253,25803.0,25802.0,0.13908843]
[1693930847205,1.550253,25803.0,25802.0,0.59742356]
[1693930847807,0.97240714,25804.0,25802.0,0.78287159]
[1693930848005,1.74750214,25804.0,25803.0,0.09271753]
[1693930848793,0.19732114,25804.0,25802.0,0.15155615]
[1693930848993,0.17732114,25804.0,25802.0,0.16755615]
[1693930849347,0.17732114,25804.0,25803.0,0.008]
[1693930849348,0.29406435,25804.0,25803.0,0.008]
[1693930849579,0.17732114,25804.0,25803.0,0.008]
[1693930849918,0.17732114,25804.0,25803.0,0.007]
[1693930852303,0.17732114,25804.0,25803.0,0.015]
[1693930853067,0.04,25805.0,25803.0,0.10771753]
[1693930853279,0.42664527,25805.0,25803.0,0.015]
[1693930853683,0.42664527,25805.0,25803.0,0.10771753]
[1693930854291,0.42664527,25805.0,25803.0,0.10071753]
[1693930854594,0.42664527,25805.0,25803.0,0.015]
[1693930854997,0.42664527,25805.0,25803.0,0.007]
[1693930855215,0.42664527,25805.0,25803.0,0.015]
[1693930856039,0.42664527,25805.0,25803.0,0.10771753]
[1693930861209,1.61856356,25805.0,25803.0,0.10771753]
[1693930861418,0.18938259,25804.0,25803.0,0.10771753]
[1693930861865,0.57602786,25804.0,25803.0,0.10771753]
[1693930862154,1.35110086,25804.0,25803.0,0.015]
[1693930862357,1.35110086,25804.0,25803.0,0.008]
[1693930862593,1.73774613,25804.0,25803.0,0.015]
[1693930863186,1.73774613,25804.0,25803.0,0.06583271]
[1693930863187,2.61521913,25804.0,25803.0,0.06583271]
[1693930863400,2.61521913,25804.0,25803.0,0.07383271]
[1693930864825,2.61521913,25804.0,25803.0,0.16655024]
[1693930865026,2.61521913,25804.0,25803.0,0.15955024]
[1693930865431,2.61521913,25804.0,25803.0,0.16655024]
[1693930865637,2.61521913,25804.0,25803.0,0.15855024]
[1693930866247,2.61521913,25804.0,25803.0,0.06583271]
[1693930866248,3.20090954,25804.0,25803.0,0.06583271]
[1693930866452,3.36175363,25804.0,25803.0,0.06583271]
[1693930866858,3.36175363,25804.0,25803.0,0.05883271]
[1693930867088,3.36275363,25804.0,25803.0,0.05883271]
[1693930867727,3.36275363,25804.0,25802.0,0.09271753]
[1693930867931,0.87569054,25803.0,25802.0,0.23180596]
[1693930868107,1.65079354,25803.0,25802.0,0.59743814]
[1693930868315,1.65079354,25803.0,25802.0,0.09289868]
[1693930868537,1.65079354,25803.0,25802.0,0.23198711]
[1693930868740,1.65079354,25803.0,25802.0,0.13908843]
[1693930868937,1.65079354,25803.0,25802.0,0.24001349]
[1693930869147,1.83440636,25803.0,25802.0,0.24001349]
[1693930869383,1.83440636,25803.0,25802.0,0.23201349]
[1693930869613,1.83440636,25803.0,25802.0,0.24001349]
[1693930869815,1.83440636,25803.0,25802.0,0.14708843]
[1693930870040,1.83440636,25803.0,25802.0,0.24704349]
[1693930870481,1.83440636,25803.0,25802.0,0.24004349]
[1693930870687,1.83440636,25803.0,25802.0,0.24704349]
[1693930870909,1.83440636,25803.0,25802.0,0.15408843]
[1693930871119,1.83440636,25803.0,25802.0,0.24705793]
[1693930871753,1.83440636,25803.0,25802.0,0.1079695]
[1693930871956,1.83440636,25803.0,25802.0,0.24705793]
[1693930872389,1.83440636,25803.0,25802.0,0.24744885]
[1693930874244,2.60950936,25803.0,25802.0,0.10797954]
[1693930874454,3.63199954,25803.0,25802.0,0.015]
[1693930875111,4.03199954,25803.0,25802.0,0.015]
[1693930875325,4.03199954,25803.0,25802.0,0.007]
[1693930875734,4.03499954,25803.0,25802.0,0.008]
[1693930876581,4.03499954,25803.0,25802.0,0.001]
[1693930876792,4.03899954,25803.0,25802.0,0.002]
[1693930877453,4.03499954,25803.0,25802.0,0.001]
[1693930877682,4.03899954,25803.0,25802.0,0.003]
[1693930878095,4.03599954,25803.0,25802.0,0.002]
[1693930878527,4.05599954,25803.0,25802.0,0.004]
[1693930887430,4.15839954,25803.0,25802.0,0.004]
[1693930888467,4.13839954,25803.0,25802.0,0.002]
[1693930888891,3.200652,25801.0,25800.0,0.135]
[1693930889094,3.98969727,25801.0,25800.0,0.135]
[1693930890268,4.01369727,25801.0,25800.0,0.137]
[1693930890699,4.01369727,25801.0,25800.0,0.139]
[1693930890700,4.03869727,25801.0,25800.0,0.139]
[1693930896877,4.20911728,25801.0,25800.0,0.139]
[1693930897286,4.57576255,25801.0,25800.0,0.139]
[1693930898971,4.40534254,25801.0,25800.0,0.139]
[1693930902281,1.06,25797.0,25796.0,0.019998]
[1693930902511,1.06,25797.0,25794.0,0.019998]
[1693930902512,0.08,25795.0,25794.0,0.019998]
[1693930902722,3.1935701,25795.0,25794.0,0.019998]
[1693930902926,3.2136691,25795.0,25794.0,0.019998]
[1693930903153,0.04,25790.0,25787.0,0.004354]
[1693930903393,2.06012527,25789.0,25785.0,0.00349996]
[1693930904022,2.04012527,25789.0,25784.0,0.953573]
[1693930904223,2.3769879,25789.0,25784.0,1.09303131]
[1693930905058,2.3789879,25789.0,25785.0,0.007]
[1693930905439,0.18856706,25788.0,25784.0,1.09303131]
[1693930905589,0.38664527,25787.0,25784.0,0.93523131]
[1693930905794,0.38664527,25787.0,25784.0,0.96423131]
[1693930905996,0.38664527,25787.0,25784.0,0.95723131]
[1693930906193,0.38664527,25787.0,25784.0,0.93523131]
[1693930906416,0.38664527,25787.0,25785.0,0.007]
[1693930906621,0.72075667,25787.0,25785.0,0.007]
[1693930907302,0.002,25788.0,25785.0,1.69775231]
[1693930907505,0.002,25788.0,25786.0,0.13946931]
[1693930907697,0.002,25788.0,25785.0,1.69075231]
[1693930907917,0.3147535,25788.0,25785.0,1.69075231]
[1693930908171,0.3147535,25788.0,25787.0,0.06026761]
[1693930908756,0.3167535,25788.0,25786.0,0.007]
[1693930909157,0.3167535,25788.0,25785.0,0.797641]
[1693930909383,0.3187535,25788.0,25785.0,0.804641]
[1693930909582,0.51972584,25788.0,25785.0,0.804641]
[1693930909740,0.51572584,25788.0,25785.0,0.775641]
[1693930911128,0.51972584,25788.0,25787.0,0.022]
[1693930911518,2.40032861,25788.0,25787.0,0.022]
[1693930911720,0.21130314,25787.0,25784.0,0.020099]
[1693930911924,0.26076318,25786.0,25785.0,0.022]
[1693930912137,0.26076318,25786.0,25785.0,0.029]
[1693930912339,0.26076318,25786.0,25785.0,0.022]
[1693930912540,0.26076318,25786.0,25784.0,0.020099]
[1693930912764,0.26076318,25786.0,25784.0,0.042099]
[1693930913175,0.59994841,25787.0,25784.0,0.042099]
[1693930913398,0.002,25787.0,25784.0,1.85050211]
[1693930913603,0.002,25787.0,25785.0,0.34501425]
[1693930913811,0.002,25787.0,25786.0,0.775614]
[1693930914218,0.155203,25788.0,25786.0,0.775614]
[1693930915318,0.002,25787.0,25786.0,0.782614]
[1693930915541,0.002,25787.0,25786.0,0.804614]
[1693930915947,0.002,25787.0,25786.0,1.580228]
[1693930916155,0.155203,25788.0,25786.0,1.551228]
[1693930916370,0.157203,25788.0,25787.0,0.1024]
[1693930916576,0.157203,25788.0,25787.0,0.877984]
[1693930917192,0.157203,25788.0,25787.0,2.429152]
[1693930917397,0.157203,25788.0,25787.0,2.548932]
[1693930917600,0.157203,25788.0,25787.0,2.539152]
[1693930917818,0.157203,25788.0,25787.0,2.77916773]
[1693930918031,0.157203,25788.0,25787.0,2.77880773]
[1693930918242,0.155203,25788.0,25787.0,2.77844773]
[1693930918451,0.157203,25788.0,25787.0,2.79996773]
[1693930918648,0.157203,25788.0,25787.0,2.79948773]
[1693930918860,0.157203,25788.0,25787.0,2.80224773]
[1693930919063,0.160203,25788.0,25787.0,2.80588773]
[1693930919273,0.160203,25788.0,25787.0,2.80558773]
[1693930919498,0.160203,25788.0,25787.0,2.80816773]
[1693930919700,0.005,25788.0,25787.0,3.679313]
[1693930919921,0.005,25788.0,25787.0,3.533093]
[1693930920142,0.005,25788.0,25787.0,3.685313]
[1693930920359,0.005,25788.0,25787.0,3.77395324]
[1693930920561,0.005,25788.0,25787.0,4.48139324]
[1693930920776,0.155167,25792.0,25789.0,0.02]
[1693930920991,0.02,25797.0,25792.0,0.1024]
[1693930921200,0.02,25799.0,25796.0,0.1024]
[1693930921427,0.2091445,25799.0,25797.0,1.03234111]
[1693930921642,1.0096,25801.0,25798.0,0.1024]
[1693930921857,1.19033466,25801.0,25800.0,0.1024]
[1693930922078,0.20073466,25801.0,25800.0,0.25705811]
[1693930922283,0.35585966,25801.0,25800.0,0.877593]
[1693930922488,0.35585966,25801.0,25800.0,0.1024]
[1693930922970,0.37685966,25801.0,25799.0,0.877606]
[1693930923170,0.37685966,25801.0,25800.0,0.05791124]
[1693930923585,0.176125,25801.0,25800.0,0.93550424]
[1693930923789,0.176125,25801.0,25800.0,2.48589024]
[1693930924419,0.176125,25801.0,25800.0,1.71069724]
[1693930924627,0.180125,25801.0,25800.0,1.71269724]
[1693930924849,0.204125,25801.0,25800.0,1.71469724]
[1693930925054,0.179125,25801.0,25800.0,1.71269724]
[1693930925294,0.170125,25801.0,25800.0,0.93650424]
[1693930925510,0.182125,25801.0,25800.0,0.93750424]
[1693930926348,0.182125,25801.0,25800.0,1.71269724]
[1693930936783,0.202125,25801.0,25800.0,0.93750424]
[1693930937409,0.24210744,25801.0,25800.0,0.93750424]
[1693930939818,0.24210744,25801.0,25800.0,0.16231124]
[1693930942655,0.202125,25801.0,25800.0,0.16231124]
[1693930943103,0.37497337,25801.0,25800.0,0.05991124]
[1693930943317,1.15013637,25801.0,25800.0,0.05991124]
[1693930950739,2.31194464,25801.0,25800.0,0.05991124]
[1693930952002,0.202125,25801.0,25800.0,0.05991124]
[1693930952222,0.202125,25801.0,25800.0,0.93750424]
[1693930955385,0.202125,25801.0,25800.0,1.71269724]
[1693930956727,0.202125,25801.0,25800.0,2.41269724]
[1693930958373,0.202125,25801.0,25800.0,1.71269724]
[1693930959643,0.262125,25801.0,25800.0,1.71269724]
[1693930960612,0.262125,25801.0,25800.0,2.41269724]
[1693930960817,0.182125,25801.0,25800.0,3.18789024]
[1693930960991,0.202125,25801.0,25800.0,3.18789024]
[1693930963986,0.027,25801.0,25800.0,3.62136135]
[1693930964207,0.027,25801.0,25800.0,3.96644135]
[1693930964416,0.027,25801.0,25800.0,3.96710135]
[1693930964622,0.027,25801.0,25800.0,3.96458135]
[1693930964828,0.012,25801.0,25800.0,3.95686135]
[1693930965154,0.014,25801.0,25800.0,3.98552135]
[1693930965338,0.014,25801.0,25800.0,3.98510135]
[1693930965539,0.014,25801.0,25800.0,3.98522135]
[1693930965749,0.014,25801.0,25800.0,3.98558135]
[1693930965951,0.002,25801.0,25800.0,4.07996588]
[1693930966152,0.004,25801.0,25800.0,4.00894135]
[1693930966353,0.004,25801.0,25800.0,4.01110135]
[1693930966586,0.002,25801.0,25800.0,3.98446135]
[1693930966766,0.004,25801.0,25800.0,4.00486135]
[1693930967065,0.004,25801.0,25800.0,4.07260588]
[1693930967304,0.002,25801.0,25800.0,3.97386135]
[1693930967457,0.004,25801.0,25800.0,4.00068135]
[1693930967666,0.004,25801.0,25800.0,4.00050135]
[1693930967822,0.004,25801.0,25800.0,4.00056135]
[1693930968023,0.004,25801.0,25800.0,4.00098135]
[1693930968226,0.004,25801.0,25800.0,4.00110135]
[1693930968422,0.004,25801.0,25800.0,4.00026135]
[1693930968630,0.004,25801.0,25800.0,4.00020135]
[1693930968824,0.004,25801.0,25800.0,4.00008135]
[1693930969051,0.004,25801.0,25800.0,3.98712135]
[1693930969305,0.004,25801.0,25800.0,3.74629024]
[1693930969613,0.004,25801.0,25800.0,3.75967024]
[1693930969821,0.004,25801.0,25800.0,3.75985024]
[1693930970019,0.004,25801.0,25800.0,3.75937024]
[1693930970173,0.004,25801.0,25800.0,3.75943024]
[1693930970387,0.004,25801.0,25800.0,3.75769024]
[1693930970569,0.004,25801.0,25800.0,3.75799024]
[1693930970771,0.004,25801.0,25800.0,3.75685024]
[1693930971016,0.004,25801.0,25800.0,3.75691024]
[1693930971227,0.004,25801.0,25800.0,3.75649024]
[1693930971398,0.004,25801.0,25800.0,3.75619024]
[1693930971603,0.004,25801.0,25800.0,3.75697024]
[1693930971823,0.004,25801.0,25800.0,3.75709024]
[1693930971999,0.004,25801.0,25800.0,3.75685024]
[1693930972205,0.004,25801.0,25800.0,3.75619024]
[1693930972400,0.004,25801.0,25800.0,3.75589024]
[1693930972680,0.004,25801.0,25800.0,3.75613024]
[1693930972898,0.004,25801.0,25800.0,3.74989024]
[1693930973099,0.004,25801.0,25800.0,3.75031024]
[1693930973465,0.004,25801.0,25800.0,3.74971024]
[1693930973697,0.004,25801.0,25800.0,4.13815551]
[1693930973939,0.004,25801.0,25800.0,4.15723551]
[1693930974118,0.004,25801.0,25800.0,4.15579551]
[1693930974480,0.004,25801.0,25800.0,4.38709551]
[1693930974689,0.004,25801.0,25800.0,4.22869551]
[1693930974901,0.004,25801.0,25800.0,4.21843551]
[1693930975106,0.004,25801.0,25800.0,4.21447551]
[1693930975310,0.004,25801.0,25800.0,4.21483551]
[1693930975511,0.004,25801.0,25800.0,4.21435551]
[1693930975715,0.004,25801.0,25800.0,4.21423551]
[1693930975920,0.004,25801.0,25800.0,4.21315551]
[1693930976127,0.004,25801.0,25800.0,4.21207551]
[1693930976333,0.004,25801.0,25800.0,4.20961551]
[1693930976539,0.004,25801.0,25800.0,4.20937551]
[1693930976739,0.004,25801.0,25800.0,4.20955551]
[1693930976892,0.004,25801.0,25800.0,4.20973551]
[1693930977096,0.004,25801.0,25800.0,4.21099551]
[1693930977306,0.004,25801.0,25800.0,4.2420848]
[1693930977500,0.004,25801.0,25800.0,4.2418448]
[1693930977698,0.004,25801.0,25800.0,4.2417248]
[1693930978107,0.004,25801.0,25800.0,4.2435848]
[1693930978314,0.004,25801.0,25800.0,4.2444848]
[1693930978578,0.004,25801.0,25800.0,4.2444248]
[1693930978739,0.004,25801.0,25800.0,4.2443648]
[1693930978931,0.004,25801.0,25800.0,4.2489848]
[1693930979138,0.004,25801.0,25800.0,4.2473048]
[1693930979334,0.004,25801.0,25800.0,4.2461648]
[1693930979700,0.004,25801.0,25800.0,4.2467648]
[1693930979851,0.004,25801.0,25800.0,4.2462848]
[1693930980054,0.004,25801.0,25800.0,4.2467048]
[1693930980233,0.004,25801.0,25800.0,4.2480248]
[1693930980431,0.004,25801.0,25800.0,4.2495848]
[1693930980654,0.004,25801.0,25800.0,4.2495248]
[1693930980854,0.004,25801.0,25800.0,4.2471848]
[1693930981057,0.004,25801.0,25800.0,4.2475448]
[1693930981263,0.004,25801.0,25800.0,4.2527048]
[1693930981471,0.004,25801.0,25800.0,4.2543248]
[1693930981621,0.004,25801.0,25800.0,4.2540248]
[1693930981823,0.004,25801.0,25800.0,4.2535448]
[1693930982028,0.004,25801.0,25800.0,4.2536048]
[1693930982260,0.004,25801.0,25800.0,4.2534848]
[1693930982428,0.004,25801.0,25800.0,4.2620048]
[1693930982639,0.004,25801.0,25800.0,4.2608048]
[1693930982836,0.004,25801.0,25800.0,4.2596048]
[1693930983093,0.004,25801.0,25800.0,4.2593048]
[1693930983285,0.004,25801.0,25800.0,4.2594248]
[1693930983519,0.004,25801.0,25800.0,4.2594848]
[1693930983698,0.004,25801.0,25800.0,4.2592448]
[1693930983902,0.004,25801.0,25800.0,4.2591248]
[1693930984101,0.004,25801.0,25800.0,4.2590648]
[1693930984302,0.004,25801.0,25800.0,4.2589448]
[1693930984509,0.004,25801.0,25800.0,4.2588248]
[1693930984711,0.004,25801.0,25800.0,4.6683248]
[1693930984947,0.004,25801.0,25800.0,4.6676648]
[1693930985090,0.004,25801.0,25800.0,4.8110648]
[1693930985290,0.004,25801.0,25800.0,4.8051848]
[1693930985536,0.50488007,25808.0,25804.0,0.04]
[1693930985537,0.55128231,25808.0,25804.0,0.04]
[1693930985736,0.08,25808.0,25807.0,0.1024]
[1693930985872,0.08,25808.0,25807.0,1.82702411]
[1693930986074,0.08,25808.0,25807.0,3.28276095]
[1693930986928,0.081,25808.0,25807.0,3.28276095]
[1693930987131,0.08,25808.0,25807.0,3.28276095]
[1693930987335,0.08,25808.0,25807.0,3.98976095]
[1693930988728,0.081,25808.0,25807.0,4.00076095]
[1693930990142,0.001,25808.0,25807.0,4.00076095]
[1693930990358,0.001,25808.0,25807.0,4.10072095]
[1693930990593,0.001,25808.0,25807.0,4.79102622]
[1693930990796,0.001,25808.0,25807.0,4.79180622]
[1693930991012,0.001,25808.0,25807.0,4.79168622]
[1693930991224,0.001,25808.0,25807.0,4.79000622]
[1693930991435,0.001,25808.0,25807.0,4.77974622]
[1693930991652,0.001,25808.0,25807.0,4.78010622]
[1693930991854,0.08,25809.0,25807.0,4.76904622]
[1693930992065,0.08,25809.0,25808.0,0.1224]
[1693930992202,0.08,25809.0,25808.0,3.147259]
[1693930992407,0.08,25809.0,25808.0,3.222319]
[1693930992604,0.08,25809.0,25808.0,3.222859]
[1693930992814,0.08,25809.0,25808.0,3.222559]
[1693930993214,0.08,25809.0,25808.0,3.249539]
[1693930993411,0.08,25809.0,25808.0,3.275799]
[1693930993645,0.08,25809.0,25808.0,3.274239]
[1693930993846,0.08,25809.0,25808.0,3.274179]
[1693930994037,0.08,25809.0,25808.0,3.274479]
[1693930994238,0.08,25809.0,25808.0,3.274059]
[1693930994440,0.08,25809.0,25808.0,3.273699]
[1693930994983,0.08,25809.0,25808.0,3.272559]
[1693930995203,0.08,25809.0,25808.0,3.271659]
[1693930995405,0.08,25809.0,25808.0,3.272319]
[1693930995596,0.08,25809.0,25808.0,3.272199]
[1693930995756,0.08,25809.0,25808.0,3.272079]
[1693930996302,0.08,25809.0,25808.0,3.270339]
[1693930996436,0.08,25809.0,25808.0,3.267939]
[1693930996643,0.08,25809.0,25808.0,3.267699]
[1693930996897,0.08,25809.0,25808.0,3.267639]
[1693930997095,0.08,25809.0,25808.0,3.268239]
[1693930997296,0.08,25809.0,25808.0,3.272079]
[1693930997478,0.08,25809.0,25808.0,3.272019]
[1693930997675,0.08,25809.0,25808.0,3.267579]
[1693930997876,0.08,25809.0,25808.0,3.267159]
[1693930998141,0.08,25809.0,25808.0,3.32656793]
[1693930998259,0.08,25809.0,25808.0,3.32674793]
[1693930998459,0.08,25809.0,25808.0,3.32608793]
[1693930998752,0.08,25809.0,25808.0,3.32578793]
[1693930998977,0.08,25809.0,25808.0,3.32452793]
[1693930999151,0.08,25809.0,25808.0,3.32368793]
[1693930999351,0.08,25809.0,25808.0,3.32380793]
[1693930999564,0.08,25809.0,25808.0,3.32230793]
[1693930999764,0.08,25809.0,25808.0,3.25534793]
[1693931002280,0.08,25809.0,25808.0,3.33352793]
[1693931002594,0.08,25809.0,25808.0,3.32548793]
[1693931002817,0.08,25809.0,25808.0,3.32488793]
[1693931002993,0.08,25809.0,25808.0,3.32518793]
[1693931003148,0.08,25809.0,25808.0,3.32500793]
[1693931003354,0.08,25809.0,25808.0,3.32464793]
[1693931003557,0.08,25809.0,25808.0,3.32518793]
[1693931003775,0.08,25809.0,25808.0,3.32524793]
[1693931004123,0.08,25809.0,25808.0,3.32722793]
[1693931004278,0.08,25809.0,25808.0,3.32380793]
[1693931004480,0.08,25809.0,25808.0,3.32314793]
[1693931004706,0.08,25809.0,25808.0,3.32140793]
[1693931004917,0.08,25809.0,25808.0,3.32254793]
[1693931005103,0.08,25809.0,25808.0,3.32080793]
[1693931005303,0.1,25809.0,25808.0,3.25534793]
[1693931010953,0.1,25809.0,25808.0,3.32050793]
[1693931011156,0.1,25809.0,25808.0,3.32182793]
[1693931011366,0.1,25809.0,25808.0,3.32176793]
[1693931011554,0.1,25809.0,25808.0,3.32206793]
[1693931011759,0.1,25809.0,25808.0,3.32236793]
[1693931011962,0.1,25809.0,25808.0,3.32212793]
[1693931012137,0.1,25809.0,25808.0,3.32554793]
[1693931012484,0.1,25809.0,25808.0,3.32548793]
[1693931012694,0.1,25809.0,25808.0,3.32392793]
[1693931012824,0.1,25809.0,25808.0,3.32716793]
[1693931013240,0.1,25809.0,25808.0,3.32524793]
[1693931013447,0.1,25809.0,25808.0,3.32506793]
[1693931013649,0.1,25809.0,25808.0,3.32638793]
[1693931013909,0.1,25809.0,25808.0,3.32614793]
[1693931014109,0.1,25809.0,25808.0,3.32626793]
[1693931014326,0.1,25809.0,25808.0,3.32638793]
[1693931014534,0.1,25809.0,25808.0,3.32608793]
[1693931014729,0.1,25809.0,25808.0,3.32626793]
[1693931015231,0.1,25809.0,25808.0,3.32620793]
[1693931015359,0.1,25809.0,25808.0,3.32662793]
[1693931015558,0.1,25809.0,25808.0,3.32668793]
[1693931015757,0.1,25809.0,25808.0,3.32680793]
[1693931016175,0.1,25809.0,25808.0,3.32704793]
[1693931016369,0.1,25809.0,25808.0,3.32740793]
[1693931016726,0.1,25809.0,25808.0,3.32854793]
[1693931016873,0.1,25809.0,25808.0,3.32848793]
[1693931017071,0.1,25809.0,25808.0,3.32836793]
[1693931017298,0.1,25809.0,25808.0,3.32842793]
[1693931017499,0.1,25809.0,25808.0,3.32836793]
[1693931017721,0.1,25809.0,25808.0,3.32830793]
[1693931017863,0.1,25809.0,25808.0,3.32800793]
[1693931018464,0.1,25809.0,25808.0,3.32752793]
[1693931018872,0.1,25809.0,25808.0,3.32710793]
[1693931019042,0.1,25809.0,25808.0,3.32716793]
[1693931019250,0.1,25809.0,25808.0,3.32800793]
[1693931019743,0.1,25809.0,25808.0,3.32782793]
[1693931020128,0.1,25809.0,25808.0,3.32698793]
[1693931020305,0.1,25809.0,25808.0,3.32728793]
[1693931020458,0.1,25809.0,25808.0,3.32296793]
[1693931020659,0.1,25809.0,25808.0,3.32200793]
[1693931020860,0.1,25809.0,25808.0,3.32290793]
[1693931021437,0.1,25809.0,25808.0,3.32314793]
[1693931021636,0.1,25809.0,25808.0,3.32452793]
[1693931021827,0.1,25809.0,25808.0,3.32404793]
[1693931022008,0.1,25809.0,25808.0,3.32440793]
[1693931022206,0.1,25809.0,25808.0,3.32308793]
[1693931022625,0.1,25809.0,25808.0,3.32362793]
[1693931022802,0.1,25809.0,25808.0,3.32302793]
[1693931023006,0.1,25809.0,25808.0,3.32212793]
[1693931023459,0.1,25809.0,25808.0,3.32152793]
[1693931023682,0.1,25809.0,25808.0,3.32158793]
[1693931023881,0.1,25809.0,25808.0,3.32164793]
[1693931024107,0.1,25809.0,25808.0,3.32146793]
[1693931024324,0.1,25809.0,25808.0,3.32140793]
[1693931024515,0.1,25809.0,25808.0,3.32050793]
[1693931024747,0.1,25809.0,25808.0,3.32080793]
[1693931024913,0.1,25809.0,25808.0,3.32068793]
[1693931025120,0.1,25809.0,25808.0,3.32062793]
[1693931025293,0.1,25809.0,25808.0,3.25534793]
[1693931030757,0.19280453,25809.0,25808.0,3.25534793]
[1693931030930,0.1,25809.0,25808.0,3.25534793]
[1693931031293,0.19280453,25809.0,25808.0,3.25534793]
[1693931031914,0.37506748,25809.0,25808.0,1.68544193]
[1693931032119,0.37506748,25809.0,25808.0,1.58304193]
[1693931032326,0.42146973,25809.0,25808.0,1.58304193]
[1693931033455,0.42146973,25809.0,25808.0,0.10808893]
[1693931033862,0.6070788,25809.0,25808.0,0.10808893]
[1693931034495,0.46787202,25809.0,25808.0,0.05808893]
[1693931034695,0.46787202,25809.0,25808.0,0.08308893]
[1693931034902,0.46887202,25809.0,25808.0,0.10808893]
[1693931035362,0.70088336,25809.0,25808.0,0.08308893]
[1693931035573,2.14572038,25809.0,25808.0,0.08308893]
[1693931035782,2.10241068,25809.0,25808.0,0.08308893]
[1693931035983,2.87733368,25809.0,25808.0,0.10708893]
[1693931042333,1.85954764,25809.0,25808.0,0.10708893]
[1693931042543,0.53944569,25809.0,25808.0,0.10708893]
[1693931042788,0.53944569,25809.0,25808.0,1.65699493]
[1693931043019,0.53944569,25809.0,25808.0,2.60502793]
[1693931043020,0.121,25809.0,25808.0,2.60502793]
[1693931043228,0.35345299,25809.0,25808.0,2.63996793]
[1693931043463,0.33345299,25809.0,25808.0,2.63276793]